Cogmind - Beta 13 @@@ ROGUE MODE // 2024.04.11 @ 16:18:04 Player: djrubbie Result: Destroyed by Z-Imprinter via exploding Z-Power Performance ------------- Evolutions (1) 500 Regions Visited (6) 1200 Robots Destroyed (55) 275 Value Destroyed (1149) 1149 Prototype IDs (0) 0 Alien Tech Used (0) 0 Bonus (613) 613 TOTAL SCORE: 3737 Bonus ------- High Alert Combat Kills 23 Follower Combat Kills 159 Met Imprinter 300 Was Imprinted 300 Friendly Fire -169 Cogmind --------- Core Integrity 0/400 Matter 300/300 Energy 100/100 System Corruption 0% Temperature Cool (0) Movement Core (450) Ox8 Location -7/Deep Caves Parts ------- > --- POWER (1) -------- (None) > --- PROPULSION (2) --- (None) > --- UTILITY (4) ------ Large Storage Unit Tactical Coordination Suite > --- WEAPON (2) ------- (None) > --- INVENTORY (15) --- Light Ion Engine Light Ion Engine Improved Terrain Scanner Hacking Suite System Shield Hacking Drone Bay Phasing AFG Assault Rifle Heavy Battle Rifle Bore Cannon Grenade Launcher Improved Datajack Peak State ------------ > --- POWER ------------ Ion Engine > --- PROPULSION ------- Light Treads Light Treads > --- UTILITY ---------- Large Storage Unit Signal Interpreter Seismic Detector Tactical Coordination Suite > --- WEAPON ----------- Heavy Battle Rifle Slug Cannon > --- INVENTORY -------- Light Ion Engine Light Ion Engine Improved Terrain Scanner Hacking Suite System Shield Hacking Drone Bay Phasing AFG Assault Rifle Heavy Battle Rifle Bore Cannon Grenade Launcher Heavy Rocket Launcher Improved Datajack [Rating: 24] Favorites ----------- Power Ion Engine Engine Ion Engine Propulsion Light Treads Treads Light Treads Utility Seismic Detector Device Seismic Detector Storage Large Storage Unit Processor Signal Interpreter Weapon Assault Rifle Ballistic Gun Assault Rifle Ballistic Cannon Slug Cannon Launcher Rocket Launcher Build | -11 -10 -10 -9 -9 -7 -7 ------- Run | Yrd Mat Min Mat Min Zio Dee Slots Evolved 2 | . . . 2 . . . Power . | . . . . . . . Propulsion . | . . . . . . . Utility 2 | . . . 2 . . . Weapon . | . . . . . . . Parts Attached 27 | 6 9 1 6 . 3 2 Power 3 | 1 1 . 1 . . . Engine 3 | 1 1 . 1 . . . Core . | . . . . . . . Reactor . | . . . . . . . Propulsion 7 | 2 3 . 2 . . . Treads 7 | 2 3 . 2 . . . Leg . | . . . . . . . Wheel . | . . . . . . . Hover . | . . . . . . . Flight . | . . . . . . . Utility 8 | 1 4 1 1 . 1 . Device 4 | . 2 . 1 . 1 . Storage 3 | 1 2 . . . . . Processor 1 | . . 1 . . . . Hackware . | . . . . . . . Protection . | . . . . . . . Artifact . | . . . . . . . Weapon 9 | 2 1 . 2 . 2 2 Energy Gun . | . . . . . . . Energy Cannon . | . . . . . . . Ballistic Gun 5 | 2 . . 1 . 2 . Ballistic Cannon 1 | . . . . . . 1 Launcher 3 | . 1 . 1 . . 1 Special Weapon . | . . . . . . . Impact Weapon . | . . . . . . . Slashing Weapon . | . . . . . . . Piercing Weapon . | . . . . . . . Special Melee Weapon . | . . . . . . . Unidentified Prototypes . | . . . . . . . Parts Lost 11 | . 1 1 . . . 9 Power 1 | . . . . . . 1 Propulsion 3 | . 1 . . . . 2 Utility 2 | . . . . . . 2 Weapon 5 | . . 1 . . . 4 Highest Loss Streak 9 | . 1 1 . . . 9 To Critical Strikes . | . . . . . . . Average Slot Usage (%) 91 | . 97 88 86 88 89 94 Engine 12 | . 14 14 10 11 11 9 Treads 24 | . 27 28 21 22 22 21 Device 12 | . 12 10 11 11 12 22 Storage 12 | . 14 14 11 11 11 11 Processor 6 | . . 3 11 11 11 8 Ballistic Gun 14 | . 21 14 11 11 11 8 Launcher 8 | . 6 2 10 11 11 10 Naked Turns . | . . . . . . . Heaviest Build 45 | 12 31 31 32 32 39 45 Greatest Support 40 | 40 40 40 40 40 40 40 Greatest Overweight (x) 1 | . 1 . . . . 1 Average Overweight (x) . | . . . . . . . Largest Inventory Capacity 15 | 8 15 15 15 15 15 15 Average Capacity 14 | 7 11 15 15 15 15 15 Most Carried 15 | 6 12 15 15 13 15 14 Average Carried 12 | 3 8 13 14 13 14 13 Final Capacity 15 | 8 15 15 15 15 15 15 Final Carried 15 | 6 12 15 13 13 14 12 Class Distribution -------------------- 56% | Mutant 43% | Scavenger-Mutant Dominant Class ---------------- Mutant | -10/Materials Mutant | -10/Mines Mutant | -9/Materials Scavenger-Mutant | -9/Mines Scavenger-Mutant | -7/Zion Scavenger-Mutant | -7/Deep Caves Resources | -11 -10 -10 -9 -9 -7 -7 ----------- Run | Yrd Mat Min Mat Min Zio Dee Matter Collected 1496 | 308 601 67 427 . 93 . Remotely . | . . . . . . . Salvage Created 1443 | 159 735 52 497 . . . Parts 113 | 11 57 6 37 . . 2 Haulers Intercepted 3 | . 2 . 1 . . . Recyclers Shooed 2 | . 1 . 1 . . . Parts Field Recycled . | . . . . . . . Retrieved Matter . | . . . . . . . Parts Self-Destructed 7 | . . . . . 7 . Prevented . | . . . . . . . Kills | -11 -10 -10 -9 -9 -7 -7 ------- Run | Yrd Mat Min Mat Min Zio Dee Combat Hostiles Destroyed 29 | . 13 1 15 . . . Guns 13 | . 10 1 2 . . . AOE 16 | . 3 . 13 . . . Classes Destroyed 10 | 2 7 1 . . . . Worker 6 | . 3 . 3 . . . Builder 2 | . 1 . 1 . . . Tunneler 5 | 3 1 1 . . . . Hauler 3 | . 2 . 1 . . . Recycler 2 | 1 1 . . . . . Operator 3 | . 2 . 1 . . . Watcher 5 | . 3 . 2 . . . Swarmer 7 | . 3 . 4 . . . Grunt 17 | . 10 . 7 . . . Sentry 5 | . . 1 4 . . . Z-Technician 1 | . . . . . . 1 Best Kill Streak 5 | 3 2 1 5 . . 1 Combat Bots Only 5 | . 2 1 5 . . . Max Kills in Single Turn 3 | 1 2 1 3 . . 1 Gunslinging . | . . . . . . . Exploded 3 | . 1 . 3 . . . Melee . | . . . . . . . Uniques/NPCs Destroyed . | . . . . . . . Combat | -11 -10 -10 -9 -9 -7 -7 -------- Run | Yrd Mat Min Mat Min Zio Dee Hostile Shots Fired 129 | . 43 12 27 . . 47 Missed 44 | . 11 1 9 . . 23 Damage Taken 2144 | . 425 230 254 . . 1235 Core 578 | . 60 48 29 . . 441 Absorbed by Shields . | . . . . . . . Regen/Repaired (Parts) 328 | . 208 . 120 . . . Core Remaining (%) 78 | 100 . 56 . . . . Volleys Fired 153 | 8 79 8 41 . 15 2 Largest 2 | 2 2 2 2 . 1 2 Hottest 81 | 40 50 50 53 . 33 81 Shots Fired 266 | 16 154 12 65 . 15 4 Gun 228 | 16 146 8 41 . 15 2 Cannon 2 | . . . . . . 2 Launcher 36 | . 8 4 24 . . . Special . | . . . . . . . Kinetic 230 | 16 146 8 41 . 15 4 Thermal . | . . . . . . . Explosive 36 | . 8 4 24 . . . Electromagnetic . | . . . . . . . Robot Hit Streak 9 | 3 9 6 4 . . 1 Robot Miss Streak 8 | 1 6 1 8 . . 2 Penetration Max . | . . . . . . . Secondary Targets 2 | . 2 . . . . . Max Gunslinging Chain 1 | . 1 . . . . . Shots Hit Robots 131 | 10 90 8 22 . . 1 Core Hits 95 | 5 41 9 39 . . 1 Critical Kills . | . . . . . . . Critical Parts Destroyed . | . . . . . . . Critical Strikes . | . . . . . . . Melee Attacks . | . . . . . . . Impact . | . . . . . . . Slashing . | . . . . . . . Piercing . | . . . . . . . Sneak Attacks . | . . . . . . . Combat Hostiles . | . . . . . . . Follow-up Attacks . | . . . . . . . Damage Inflicted 3262 | 117 1345 393 1389 . . 18 Guns 1460 | 117 1068 71 204 . . . Cannons 18 | . . . . . . 18 Explosions 1756 | . 272 304 1180 . . . Melee . | . . . . . . . Ramming 28 | . 5 18 5 . . . Kinetic 1478 | 117 1068 71 204 . . 18 Thermal . | . . . . . . . Explosive 1756 | . 272 304 1180 . . . Electromagnetic . | . . . . . . . Impact . | . . . . . . . Slashing . | . . . . . . . Piercing . | . . . . . . . Highest Corruption . | . . . . . . . Average Corruption . | . . . . . . . Corruption Purged . | . . . . . . . Corruption Blocked . | . . . . . . . Overload Shots . | . . . . . . . Overflow Damage 35 | . . . 35 . . . Projectiles . | . . . . . . . Explosions 35 | . . . 35 . . . Melee . | . . . . . . . Knockbacks . | . . . . . . . Impact . | . . . . . . . Kinetic . | . . . . . . . Secondary . | . . . . . . . Self-Inflicted Damage 122 | . 36 72 14 . . . Shots 6 | . 2 3 1 . . . Rammed 7 | . 1 5 1 . . . Targets Rammed 9 | . 2 5 1 . . 1 Kicked . | . . . . . . . Crushed 2 | . 1 . . . . 1 Highest Temperature 69 | . 2 24 3 . . 69 Average Temperature 13 | . 2 13 3 . . 32 Received Heat Transfer 582 | . 183 99 84 . . 216 Siege Activations . | . . . . . . . Robots Corrupted . | . . . . . . . Combat Hostiles . | . . . . . . . Parts Fried . | . . . . . . . Impact Corruptions . | . . . . . . . Robots Melted . | . . . . . . . Combat Hostiles . | . . . . . . . Parts Melted . | . . . . . . . Heat Transferred . | . . . . . . . Parts Sabotaged . | . . . . . . . Parts Stolen . | . . . . . . . Parts Stripped . | . . . . . . . Power Chain Reactions . | . . . . . . . Alert | -11 -10 -10 -9 -9 -7 -7 ------- Run | Yrd Mat Min Mat Min Zio Dee Peak Influence 542 | 20 215 63 542 211 . . Initial 211 | . 13 21 . 211 . . Average 100 | 8 85 9 275 211 . . Maximum Alert Level 2 | . 1 . 2 1 . . Low Security (%) 84 | 100 99 100 35 . . . Level 1 10 | . . . 36 100 . . Level 2 5 | . . . 28 . . . Level 3 . | . . . . . . . Level 4 . | . . . . . . . Level 5 . | . . . . . . . High Security . | . . . . . . . Max Security . | . . . . . . . Squads Dispatched 5 | . 2 . 3 . . . Investigation 1 | . 1 . . . . . Extermination . | . . . . . . . Reinforcement 4 | . 1 . 3 . . . Assault . | . . . . . . . Garrison . | . . . . . . . Intercept . | . . . . . . . Searches Triggered . | . . . . . . . Construction Impeded 1 | . . . 1 . . . Haulers Reinforced . | . . . . . . . Active Scanning Responses . | . . . . . . . Cargo Convoy Interrupts . | . . . . . . . Stealth | -11 -10 -10 -9 -9 -7 -7 --------- Run | Yrd Mat Min Mat Min Zio Dee Distress Signals 5 | . 2 . 3 . . . Communications Jammed . | . . . . . . . Distress Signals . | . . . . . . . Times Spotted 51 | . 22 2 24 . . 3 Peak Tracking Total 4 | . 4 2 4 . . 3 Tactical Retreats 2 | . 2 . . . . . Traps | -11 -10 -10 -9 -9 -7 -7 ------- Run | Yrd Mat Min Mat Min Zio Dee Traps Triggered 1 | . 1 . . . . . Indirectly . | . . . . . . . Trap Hack Attempts . | . . . . . . . Triggered . | . . . . . . . Disarmed . | . . . . . . . Reprogrammed . | . . . . . . . Reused . | . . . . . . . Traps Extracted . | . . . . . . . Installed . | . . . . . . . Triggered . | . . . . . . . Machines | -11 -10 -10 -9 -9 -7 -7 ---------- Run | Yrd Mat Min Mat Min Zio Dee Machines Disabled 6 | . 1 2 3 . . . Max in Single Turn 2 | . 1 2 1 . . . Machines Repaired . | . . . . . . . Machines Dismantled . | . . . . . . . Machines Sabotaged . | . . . . . . . Overloaded Fab Kills . | . . . . . . . Hacking | -11 -10 -10 -9 -9 -7 -7 --------- Run | Yrd Mat Min Mat Min Zio Dee Machines Accessed 6 | . 5 . 1 . . . Terminals 3 | . 3 . . . . . Fabricators . | . . . . . . . Repair Stations 2 | . 1 . 1 . . . Recycling Units 1 | . 1 . . . . . Scanalyzers . | . . . . . . . Garrison Access . | . . . . . . . Total Hacks 16 | . 12 . 4 . . . Successful 16 | . 12 . 4 . . . Failed . | . . . . . . . Catastrophic . | . . . . . . . Database Lockouts . | . . . . . . . Manual 9 | . . . . . 9 . Terminals 3 | . 3 . . . . . Fabricators . | . . . . . . . Repair Stations 12 | . 8 . 4 . . . Recycling Units 1 | . 1 . . . . . Scanalyzers . | . . . . . . . Garrison Access . | . . . . . . . Terminal Hacks 3 | . 3 . . . . . Robot Analysis 1 | . 1 . . . . . Emergency Access Points 1 | . 1 . . . . . Hauler Manifests 1 | . 1 . . . . . Fabricator Hacks . | . . . . . . . Repair Station Hacks 12 | . 8 . 4 . . . Scan Component 6 | . 4 . 2 . . . Repair 6 | . 4 . 2 . . . Recycling Unit Hacks 1 | . 1 . . . . . Report Inventory 1 | . 1 . . . . . Scanalyzer . | . . . . . . . Garrison Access Hacks . | . . . . . . . Unauthorized Hacks . | . . . . . . . Terminals . | . . . . . . . Fabricators . | . . . . . . . Repair Stations . | . . . . . . . Recycling Units . | . . . . . . . Scanalyzers . | . . . . . . . Garrison Access . | . . . . . . . Data Cores Recovered 1 | . 1 . . . . . Used 1 | . 1 . . . . . Hacking Detections 3 | . 2 . 1 . . . Full Trace Events 1 | . 1 . . . . . Feedback Events . | . . . . . . . Feedback Blocked . | . . . . . . . Robot Schematics Acquired 4 | . . . . . 4 . Robots Built . | . . . . . . . Authchips . | . . . . . . . Time . | . . . . . . . Total Robot Build Rating . | . . . . . . . Part Schematics Acquired 15 | . . . . . 15 . Parts Built . | . . . . . . . Authchips . | . . . . . . . Time . | . . . . . . . Total Part Build Rating . | . . . . . . . Parts Repaired 6 | . 4 . 2 . . . Time 156 | . 104 . 52 . . . Parts Recycled . | . . . . . . . Recycled Matter . | . . . . . . . Retrieved Matter . | . . . . . . . Retrieved Components . | . . . . . . . Parts Scanalyzed . | . . . . . . . Part Schematics Acquired . | . . . . . . . Parts Damaged . | . . . . . . . Bothacking | -11 -10 -10 -9 -9 -7 -7 ------------ Run | Yrd Mat Min Mat Min Zio Dee Used RIF Installer . | . . . . . . . Robots Hacked . | . . . . . . . Non-combat . | . . . . . . . Combat . | . . . . . . . Robot Hacks Applied . | . . . . . . . Relay Couplers Released . | . . . . . . . Fabnet Peak Effective % . | . . . . . . . Robots Rewired . | . . . . . . . Allies Hacked . | . . . . . . . Hacks Repelled . | . . . . . . . Allies | -11 -10 -10 -9 -9 -7 -7 -------- Run | Yrd Mat Min Mat Min Zio Dee Total Allies 7 | . . 3 . . 4 . Largest Group 4 | . . 3 3 . 4 4 Highest-Rated Group 146 | . . 40 40 . 146 146 Highest-Rated Ally 38 | . . 16 16 . 38 38 Total Orders . | . . . . . . . Ally Attacks 41 | . . . 41 . . . Total Damage 398 | . . . 398 . . . Kills 6 | . . . 6 . . . Allies Corrupted . | . . . . . . . Allies Melted . | . . . . . . . Intel | -11 -10 -10 -9 -9 -7 -7 ------- Run | Yrd Mat Min Mat Min Zio Dee Robot Analysis Total 1 | . 1 . . . . . Derelict Logs Recovered 2 | . . 2 . . . . Drone Launches . | . . . . . . . Drone Recoveries . | . . . . . . . Exploration | -11 -10 -10 -9 -9 -7 -7 ------------- Run | Yrd Mat Min Mat Min Zio Dee Turns Passed 8183 | 136 2027 1519 966 116 3274 145 Spaces Moved 4567 | 68 995 908 425 73 2018 80 Core 14 | 14 . . . . . . Treads 4553 | 54 995 908 425 73 2018 80 Legs . | . . . . . . . Wheels . | . . . . . . . Hover . | . . . . . . . Flight . | . . . . . . . Fastest Speed 50 | 50 160 160 160 160 160 160 Average Speed 159 | 137 160 160 160 160 160 169 Slowest Speed 240 | 160 240 160 160 160 160 240 Overloaded Moves . | . . . . . . . Propulsion Burnouts . | . . . . . . . Robots Hopped . | . . . . . . . Cave-ins Triggered . | . . . . . . . Exploration Rate (%) 55 | 4 89 101 50 31 88 24 Regions Visited 6 Branch Regions 4 Pre-discovered Areas 1 | . . 1 . . . . Known Exits Taken 4 | . . 1 1 1 1 . Unknown Exits Taken 2 | 1 1 . . . . . Scrap Searched 5 | . . 2 . . 3 . Spaces Dug 12 | . . . 12 . . . Terrain Destroyed 311 | . 62 29 219 . . 1 Melee . | . . . . . . . Projectile 1 | . . . . . . 1 AOE 310 | . 62 29 219 . . . Terrain Rammed . | . . . . . . . Walls Destroyed . | . . . . . . . Machines Disabled . | . . . . . . . Actions | -11 -10 -10 -9 -9 -7 -7 --------- Run | Yrd Mat Min Mat Min Zio Dee Total 5186 | 95 1274 959 647 72 2054 85 Wait 368 | . 167 35 165 . 1 . Move 4561 | 67 994 907 424 72 2017 80 Hop . | . . . . . . . Pick Up 50 | 13 18 3 6 . 10 . Fast Attach . | . . . . . . . Attach 18 | 6 5 . 4 . 1 2 Detach . | . . . . . . . Swap 9 | . 4 1 2 . 2 . Drop 18 | 1 5 . 4 . 8 . Fire 153 | 8 79 8 41 . 15 2 Melee . | . . . . . . . Ram . | . . . . . . . Kick . | . . . . . . . Crush 9 | . 2 5 1 . . 1 Escape Stasis . | . . . . . . . Rewire . | . . . . . . . Trap . | . . . . . . . Miscellaneous . | . . . . . . . Route ------- -11/Scrapyard -10/Materials (discovered 5 exits: *Mat x3 / [*Min] / *Sub) -10/Mines (discovered 3 exits: *Mat x2 / *Sub) -9/Materials (discovered 4 exits: *Mat x2 / *Min x2) -9/Mines -7/Zion -7/Deep Caves History --------- Turn | Location | Event 4 | -11/Scrapyard | Discovered new exit (range 16) 137 | -11/Scrapyard | Entered Materials 333 | -10/Materials | Build established: Mutant 356 | -10/Materials | Discovered new exit (range 16) 778 | -10/Materials | Discovered new exit (range 14) 1051 | -10/Materials | Discovered new exit (range 6) 1331 | -10/Materials | Discovered new exit (range 8) 1499 | -10/Materials | Discovered new exit (range 13) 1615 | -10/Materials | Repaired Lgt. Treads 1617 | -10/Materials | Repaired Lgt. Treads 1643 | -10/Materials | Repaired Assault Rifle 1676 | -10/Materials | Repaired Lgt. Treads 2164 | -10/Materials | Entered Mines 2166 | -10/Mines | Met a Derelict bent on vengeance 2230 | -10/Mines | Discovered new exit (range 9) 2231 | -10/Mines | Learned location of Storage (-7) 2233 | -10/Mines | Learned location of 1 exit from Materials 2449 | -10/Mines | Discovered new exit (range 12) 2476 | -10/Mines | Joined a pair of Derelicts in attacking an 0b10 outpost 2583 | -10/Mines | Found a hidden stash of uninstalled traps 2637 | -10/Mines | Assisted by bots powering up and referring to "LRC-V3" 3221 | -10/Mines | Discovered new exit (range 6) 3413 | -10/Mines | Identified exit to Materials 3539 | -10/Mines | Identified exit to Subcaves 3683 | -10/Mines | Entered Materials 3683 | -9/Materials | Accompanied by 3 allies 3683 | -9/Materials | Evolved 2 slots: Utility x2 3684 | -9/Materials | Identified exit to Materials 4077 | -9/Materials | Repaired Ion Engine 4105 | -9/Materials | Repaired Lgt. Treads 4178 | -9/Materials | Discovered exit to Materials (range 9) 4261 | -9/Materials | Discovered new exit (range 6) 4267 | -9/Materials | Identified exit to Mines 4545 | -9/Materials | Discovered exit to Mines (range 11) 4649 | -9/Materials | Entered Mines 4745 | -9/Mines | A Derelict revealed a hidden shortcut to a safe place 4763 | -9/Mines | Identified exit to Zion 4765 | -9/Mines | Entered Zion 4922 | -7/Zion | Build established: Scavenger-Mutant 5187 | -7/Zion | Found Prototype Device 5249 | -7/Zion | Given the Hacking Drone Bay 5251 | -7/Zion | Found Prototype Device 5964 | -7/Zion | Imprinted 5966 | -7/Zion | Declared Zion's savior 6334 | -7/Zion | Acquired unknown access codes intercepted by a Zionite 8002 | -7/Zion | Opened final containment barrier to the Deep Caves 8027 | -7/Zion | Discovered new exit (range 3) 8027 | -7/Zion | Saw the warning signs outside the Deep Caves entrance 8032 | -7/Zion | Identified exit to Deep Caves 8039 | -7/Zion | Entered Deep Caves 8039 | -7/Deep Caves | Accompanied by 4 allies 8147 | -7/Deep Caves | Attacked by Z-Imprinter 8184 | -7/Deep Caves | Destroyed by Z-Imprinter via exploding Z-Power Last Messages --------------- 8G-IVC(M) slips into the shadows. 53-5RS(M) slips into the shadows. ME-ABI(M) slips into the shadows. NEW_ZION: Z-Facility proximity alert. Z-Imprinter: GET AWAY FROM HERE! I've worked too hard for our future just to have you ruin everything! Rocket Launcher destroyed. 9K-93P(o) is busy at the terminal. Signal Interpreter destroyed. Hvy. Battle Rifle destroyed. Ion Engine destroyed. Lgt. Treads destroyed. Crushed 9K-93P(o). 9K-93P(o) destroyed. Z-Power explodes. Seismic Detector destroyed. Hvy. Rocket Launcher destroyed. Slug Cannon destroyed. Lgt. Treads destroyed. Map ----- +----------------------------------------------------+ | ???????????????????????"" ## | | ???????????????????????"" # | | ?????????????????????"""" | | ?????????????????????"""" | | ?????????????????????" | | ??????????????????????""" | | ?????????????????????"""" # | | ??????????????????""""""" ## | | ??????????????????""""""" #? | | ??????????????????"" " " #? | | ??????????????????""" # | | ??????????????????"" # | | ??????????????????""" # | | ??????????????????""" ## | | ????????????????""""""" #? | | ????????????????"""""""""o ? | | ????????????????"" # | | ????????????????"" ## | | ????????????????"" ##? | | ????????????????"" ??? | | ???????????????""" ???? | | ????????????????"" ????? | | ????????????????"" ??????? | | ???????????????""" ???????? | | ???????????????""" ???????? | | ???????????????""""""""""@ ????????? | | ????????????????""""""" ????????? | | ????????????????? ????????? | | ???????????????? ?????????? | | ???????????????? ?????????? | | ??????????????? ??????????? | | ????????????? ??????????? | | ???????????? ??????????? | | ????????????? ##### ???????????? | | ????????????? ####????## ???????????? | | ?????????????? #???????????????????????? | | ?????????????? ####????????????????????????? | | ????????????????#####????????????????????????????? | | ?????????????????????????????????????????????????? | | | | | | | | | | | | | | | | | | | | | | | +----------------------------------------------------+ Best States ------------- Heat Dissipation 28 Energy Generation 10 Energy Capacity 250 Matter Stores 300 Matter Capacity 300 Sight Range 16 Terrain Scan Density 10 Evasion (%) 40 Recoil Reduction 2 Item Schematics ----------------- Matter Compressor | -7/Zion | Archive Power Maul | -7/Zion | Archive Imp. Thermal Shield | -7/Zion | Archive Point Defense System | -7/Zion | Archive Adv. ECM Suite | -7/Zion | Archive Mak. Cloaking Device | -7/Zion | Archive Xenon Bombardment Thruster | -7/Zion | Archive Imp. Core Shielding | -7/Zion | Archive Focal Shield | -7/Zion | Archive Hvy. Laser | -7/Zion | Archive Mak. Hammer | -7/Zion | Archive EM Disruption Field | -7/Zion | Archive Hvy. Riot Gun | -7/Zion | Archive Hvy. Flak Cannon | -7/Zion | Archive Gauss Rifle | -7/Zion | Archive Robot Schematics ------------------ A-02 Transporter | -7/Zion | Archive K-01 Serf | -7/Zion | Archive S-27 Virus | -7/Zion | Archive H-88 Terminator | -7/Zion | Archive Fabricated ------------ Nothing Alien Tech Used ----------------- None Achievements -------------- Adventurer Robot Respite Signs Are For Wimps The One Challenges ------------ None Game ------ Seed FusionMicroCharger Manual? 0 Play Time 00:59:02 Cumulative 14.3 hours Start 2024.04.11 @ 14:46:51 End 2024.04.11 @ 16:18:04 Sessions 1 Manual Loads 0 Difficulty Rogue Special Mode None Game No. 16 Rogue 16 Adventurer 0 Explorer 0 Win Type - Total 0 Types 0/0/0/0/0/0/0/0/0 Lore% 16 Gallery% 11 Achievement% 14 Wizard Run 0 Options --------- Layout 1 ASCII 0 Keyboard 0 Movement Mouse Keybinds 0 Fullscreen 0 Font 28/SmallcapsGlow Map View 50x35 Zoom Use 0% Tactical HUD 0 Map Filters NONE Filters NONE Steam 1 RUN: 62a43e72-1e84-4927-9f34-81fa0a5867b2